bitfinex-derivatives/quotes_BTCF0:USTF0_20250119
["timestamp","ask_amount","ask_price","bid_price","bid_amount"]
[1737322293454,0.408646,104610.0,104600.0,0.10764]
[1737322294155,0.408646,104610.0,104600.0,1.37832365]
[1737322294343,0.57390132,104610.0,104600.0,1.37832365]
[1737322294648,0.57390132,104610.0,104600.0,0.10859457]
[1737322294649,0.87390132,104610.0,104600.0,0.10859457]
[1737322294865,0.87390132,104610.0,104560.0,1.09719434]
[1737322294866,0.87390132,104610.0,104560.0,0.73587434]
[1737322295154,0.514,104630.0,104560.0,0.73587434]
[1737322295155,0.52605532,104580.0,104560.0,0.73587434]
[1737322295347,0.3608,104570.0,104560.0,2.3926941]
[1737322295547,0.52605532,104580.0,104560.0,2.3926941]
[1737322296052,0.21311532,104580.0,104560.0,2.3941841]
[1737322296254,0.57391532,104580.0,104560.0,0.00149]
[1737322296454,0.21311532,104580.0,104560.0,0.00149]
[1737322296651,0.16525532,104580.0,104560.0,0.00149]
[1737322296843,0.16525532,104600.0,104570.0,0.408668]
[1737322297049,0.16525532,104600.0,104570.0,0.047868]
[1737322297351,1.32000332,104620.0,104580.0,0.408664]
[1737322297551,0.5142,104620.0,104590.0,0.3608]
[1737322297853,0.3608,104630.0,104590.0,0.3608]
[1737322298050,0.3608,104610.0,104590.0,0.04786]
[1737322298253,0.408653,104610.0,104570.0,0.408666]
[1737322298558,0.52605532,104600.0,104560.0,0.00149]
[1737322298746,0.52605532,104580.0,104560.0,0.00149]
[1737322298954,0.57392232,104580.0,104560.0,0.00149]
[1737322299349,0.52605532,104580.0,104560.0,0.00149]
[1737322299546,0.408658,104600.0,104570.0,0.408669]
[1737322299746,0.598,104610.0,104580.0,0.047864]
[1737322300047,0.3608,104610.0,104580.0,0.047864]
[1737322300354,0.4431843,104640.0,104600.0,0.408655]
[1737322300655,0.047843,104630.0,104600.0,0.408655]
[1737322300862,0.9575043,104640.0,104610.0,0.047851]
[1737322301050,0.36223555,104650.0,104610.0,0.3608]
[1737322301249,0.00143555,104650.0,104630.0,0.047841]
[1737322301450,0.00143555,104650.0,104640.0,0.047837]
[1737322301652,0.00143555,104650.0,104630.0,0.3608]
[1737322302159,0.04785,104620.0,104580.0,0.408664]
[1737322302356,0.04785,104620.0,104570.0,0.52605532]
[1737322302357,0.3608,104600.0,104570.0,0.3608]
[1737322302655,0.3608,104580.0,104560.0,0.00156304]
[1737322302855,0.408665,104580.0,104560.0,0.00156304]
[1737322303063,0.408669,104570.0,104560.0,0.00149]
[1737322303359,0.3608,104570.0,104550.0,0.047877]
[1737322303557,0.3608,104560.0,104530.0,0.047885]
[1737322303764,0.3608,104550.0,104530.0,0.047885]
[1737322304065,0.3608,104540.0,104510.0,0.047895]
[1737322304254,0.3608,104530.0,104500.0,0.147897]
[1737322304449,0.3608,104530.0,104510.0,0.047895]
[1737322304651,0.87512,104550.0,104520.0,0.047889]
[1737322304859,0.3608,104560.0,104530.0,0.047887]
[1737322305050,0.3608,104570.0,104540.0,0.047881]
[1737322305257,0.87512,104580.0,104560.0,0.047873]
[1737322305452,0.51432,104580.0,104560.0,0.047873]
[1737322305653,0.87512,104580.0,104550.0,0.047875]
[1737322305855,0.3608,104570.0,104540.0,0.047883]
[1737322306167,0.87512,104580.0,104540.0,0.3608]
[1737322306359,0.3608,104600.0,104550.0,0.52605532]
[1737322306551,0.00143633,104610.0,104580.0,0.408664]
[1737322306751,0.04928733,104610.0,104580.0,0.047864]
[1737322306958,0.04928733,104610.0,104580.0,0.3608]
[1737322307152,0.3608,104600.0,104550.0,0.5678]
[1737322307369,0.36223633,104610.0,104560.0,0.3608]
[1737322307564,0.41008733,104610.0,104570.0,0.047868]
[1737322307868,0.36223633,104610.0,104570.0,0.047868]
[1737322308069,0.408657,104600.0,104560.0,0.3608]
[1737322308359,0.3608,104600.0,104550.0,0.5678]
[1737322308567,0.36223633,104610.0,104570.0,0.3608]
[1737322308764,0.00143633,104610.0,104590.0,0.047859]
[1737322309162,0.00143633,104610.0,104590.0,0.3608]
[1737322309357,0.4431843,104640.0,104620.0,0.047844]
[1737322309558,0.0823843,104640.0,104630.0,0.047842]
[1737322309755,0.19223003,104650.0,104630.0,0.408642]
[1737322309959,0.55303003,104650.0,104620.0,0.20767669]
[1737322310165,0.55303003,104650.0,104610.0,0.408649]
[1737322310166,0.3608,104640.0,104610.0,0.408649]
[1737322310361,0.24006403,104650.0,104610.0,0.408649]
[1737322310362,0.60086403,104650.0,104610.0,0.408649]
[1737322310667,0.52605532,104650.0,104600.0,0.3608]
[1737322310968,0.3608,104610.0,104580.0,0.7631]
[1737322311165,0.3608,104610.0,104570.0,0.3608]
[1737322311376,0.408658,104600.0,104560.0,0.40878889]
[1737322311668,0.3608,104590.0,104560.0,0.04798889]
[1737322312065,0.3608,104580.0,104560.0,0.04798889]
[1737322312458,0.3608,104590.0,104570.0,0.047869]
[1737322312658,0.40866,104590.0,104570.0,0.3608]
[1737322312860,0.40866,104590.0,104560.0,0.00011789]
[1737322313065,0.3608,104590.0,104570.0,0.047867]
[1737322313267,0.3608,104610.0,104580.0,0.408663]
[1737322313481,0.408644,104630.0,104600.0,0.408655]
[1737322313661,0.0823843,104640.0,104610.0,0.3608]
[1737322313971,0.1302213,104640.0,104610.0,0.408649]
[1737322314265,0.0823843,104640.0,104600.0,0.605353]
[1737322314470,0.408647,104620.0,104600.0,0.1967]
[1737322314665,0.408647,104620.0,104570.0,0.3608]
[1737322314666,0.52605532,104610.0,104570.0,0.3608]
[1737322314859,0.408665,104580.0,104550.0,0.5637]
[1737322315060,0.408665,104580.0,104550.0,0.250776]
[1737322315261,0.3608,104570.0,104540.0,0.57103438]
[1737322315472,0.40867,104570.0,104540.0,0.21023438]
[1737322315666,0.3608,104560.0,104540.0,0.00143438]
[1737322315866,0.3608,104560.0,104540.0,0.04931638]
[1737322316172,0.3608,104560.0,104540.0,0.00143438]
[1737322316374,0.047878,104550.0,104540.0,0.00143438]
[1737322316571,0.047887,104540.0,104510.0,0.2088]
[1737322316759,0.408687,104540.0,104510.0,0.256696]
[1737322316959,0.3608,104540.0,104500.0,0.4608]
[1737322317167,0.408697,104510.0,104500.0,0.1]
[1737322318460,0.3608,104520.0,104500.0,0.1]
[1737322318666,0.408695,104520.0,104500.0,0.1]
[1737322318866,0.047895,104520.0,104500.0,0.1]
[1737322319169,0.408695,104520.0,104500.0,0.1]
[1737322319373,0.408697,104510.0,104500.0,0.1]
[1737322319677,0.047897,104510.0,104500.0,0.1]
[1737322320169,0.57395232,104510.0,104500.0,0.14363629]
[1737322320478,0.04791,104490.0,104450.0,0.41015569]
[1737322320671,0.3608,104490.0,104470.0,0.047912]
[1737322320870,0.3608,104490.0,104450.0,0.36223569]
[1737322320871,0.2608,104500.0,104460.0,0.52605532]
[1737322321068,0.3608,104510.0,104460.0,0.56976498]
[1737322321372,0.047908,104490.0,104460.0,0.09162766]
[1737322321573,0.3608,104500.0,104470.0,0.047913]
[1737322321765,0.3608,104520.0,104480.0,0.3608]
[1737322321959,0.88685532,104490.0,104450.0,0.00143569]
[1737322322161,0.3608,104470.0,104450.0,0.00143569]
[1737322322576,0.3608,104490.0,104450.0,0.00143569]
[1737322322762,0.3608,104500.0,104460.0,0.3608]
[1737322323084,0.5531,104510.0,104490.0,0.047906]
[1737322323085,0.4436678,104510.0,104490.0,0.047906]
[1737322323372,0.4436678,104510.0,104470.0,0.3608]
[1737322323373,0.0828678,104510.0,104500.0,0.047901]
[1737322323975,0.1104904,104520.0,104510.0,0.047897]
[1737322324270,0.51468,104540.0,104510.0,0.3608]
[1737322324479,0.51468,104540.0,104520.0,0.40869]
[1737322324668,0.87548,104540.0,104520.0,0.40869]
[1737322324981,0.51468,104540.0,104510.0,0.047895]
[1737322325165,0.87548,104540.0,104510.0,0.047895]
[1737322325576,0.51468,104540.0,104530.0,0.408687]
[1737322326368,0.4712904,104570.0,104540.0,0.04788]
[1737322326576,0.499553,104580.0,104520.0,0.047889]
[1737322326577,0.3608,104550.0,104520.0,0.047889]
[1737322326980,0.3608,104550.0,104500.0,0.047901]
[1737322326981,0.3608,104540.0,104500.0,0.047901]
[1737322327166,0.3608,104530.0,104500.0,0.047901]
[1737322327370,0.3608,104520.0,104500.0,0.047901]
[1737322327571,0.3608,104520.0,104480.0,0.408709]
[1737322327572,0.3608,104510.0,104480.0,0.408709]
[1737322327774,0.3608,104510.0,104470.0,0.3608]
[1737322327974,0.408693,104520.0,104480.0,0.047908]
[1737322328281,0.408709,104490.0,104460.0,0.00143556]
[1737322328479,0.3608,104490.0,104460.0,0.04935556]
[1737322328774,0.3608,104490.0,104460.0,0.36223556]
[1737322328967,0.3608,104480.0,104460.0,0.00143556]
[1737322329172,0.408709,104490.0,104460.0,0.04935456]
[1737322329374,0.3608,104490.0,104460.0,0.00143556]
[1737322329569,1.04149532,104500.0,104460.0,0.00143556]
[1737322329570,0.51544,104500.0,104480.0,0.047908]
[1737322329772,0.51472,104500.0,104470.0,0.3608]
[1737322329973,0.3608,104480.0,104460.0,0.04935356]
[1737322330174,0.408708,104490.0,104460.0,0.04935456]
[1737322330382,0.16525532,104470.0,104460.0,0.00143556]
[1737322330679,0.3608,104470.0,104460.0,0.00143556]
[1737322331671,0.57397032,104470.0,104410.0,0.3608]
[1737322331978,0.57397032,104470.0,104420.0,0.047937]
[1737322331979,0.408722,104460.0,104420.0,0.047937]
[1737322332173,0.3608,104440.0,104410.0,0.04794]
[1737322332379,0.3608,104430.0,104400.0,0.1]
[1737322332581,0.3608,104430.0,104400.0,0.147946]
[1737322332770,0.3608,104430.0,104400.0,0.1]
[1737322333076,0.3608,104450.0,104440.0,0.047926]
[1737322333280,0.3608,104470.0,104440.0,0.047926]
[1737322333475,0.3608,104460.0,104440.0,0.047926]
[1737322333886,0.3608,104460.0,104420.0,0.408735]
[1737322334179,0.3608,104450.0,104440.0,0.047926]
[1737322334574,0.3608,104450.0,104420.0,0.408736]
[1737322334768,0.52605532,104450.0,104420.0,0.408736]
[1737322334968,0.52605532,104450.0,104400.0,0.1]
[1737322334969,0.3608,104440.0,104400.0,0.1]
[1737322335167,0.3608,104450.0,104430.0,0.047931]
[1737322335375,0.3608,104460.0,104440.0,0.047929]
[1737322335685,0.3608,104480.0,104460.0,0.047917]
[1737322335977,0.92486029,104500.0,104460.0,0.047917]
[1737322336183,0.408706,104490.0,104460.0,0.047917]
[1737322336685,0.3608,104490.0,104460.0,0.3608]
[1737322336883,0.87695729,104500.0,104480.0,0.04791]
[1737322337089,0.87695729,104500.0,104490.0,0.047906]
[1737322337090,0.00143729,104500.0,104490.0,0.047906]
[1737322337391,0.408685,104540.0,104500.0,0.047899]
[1737322337584,0.9863704,104550.0,104500.0,0.3608]
[1737322337782,0.9863704,104550.0,104520.0,0.04789]
[1737322337977,0.3608,104560.0,104530.0,0.047886]
[1737322338179,0.827071,104570.0,104540.0,0.04788]
[1737322338180,0.047871,104570.0,104540.0,0.04788]
[1737322338482,0.3608,104580.0,104560.0,0.047872]
[1737322338684,0.9870104,104590.0,104540.0,0.52605532]
[1737322338884,0.9863704,104590.0,104550.0,0.3608]
[1737322339184,0.87588,104590.0,104570.0,0.047869]
[1737322339488,0.408666,104580.0,104540.0,0.3608]
[1737322339682,0.87588,104590.0,104550.0,0.3608]
[1737322339889,0.923742,104590.0,104560.0,0.047872]
[1737322340277,0.3608,104580.0,104560.0,0.047872]
[1737322340472,0.3608,104580.0,104530.0,0.3608]
[1737322340473,0.408669,104570.0,104530.0,0.408686]
[1737322340684,0.52605532,104570.0,104530.0,0.3608]
[1737322340879,0.047883,104540.0,104510.0,0.408694]
[1737322341082,0.3608,104550.0,104510.0,0.047894]
[1737322341281,0.3608,104530.0,104500.0,0.776435]
[1737322341679,0.3608,104530.0,104500.0,0.362235]
[1737322341878,0.3608,104530.0,104500.0,0.410135]
[1737322342079,0.408677,104560.0,104510.0,0.3608]
[1737322342282,0.4126,104580.0,104540.0,0.047879]
[1737322342283,0.5191574,104580.0,104540.0,0.047879]
[1737322342486,0.1104904,104580.0,104550.0,0.3608]
[1737322342680,0.1104904,104580.0,104560.0,0.57392632]
[1737322342875,0.1104904,104580.0,104570.0,0.408669]
[1737322343082,0.138113,104590.0,104580.0,0.047865]
[1737322343292,0.51492,104630.0,104610.0,0.04785]
[1737322343593,0.16514191,104640.0,104630.0,0.047842]
[1737322343795,0.16514191,104640.0,104630.0,0.57389732]
[1737322344091,0.16514191,104640.0,104610.0,0.21310432]
[1737322344289,0.21298191,104640.0,104610.0,0.21310432]
[1737322344492,0.16514191,104640.0,104620.0,0.047844]
[1737322344786,0.16514191,104640.0,104610.0,0.52605532]
[1737322344988,0.16514191,104640.0,104630.0,0.21309732]
[1737322345189,0.3608,104670.0,104630.0,0.52605532]
[1737322345485,0.3608,104680.0,104660.0,0.047828]
[1737322345691,0.3608,104690.0,104650.0,0.16525532]
[1737322345879,0.3608,104670.0,104650.0,0.52605532]
[1737322346076,0.3608,104680.0,104650.0,0.047828]
[1737322346379,0.408623,104680.0,104640.0,0.7841]
[1737322346583,0.408629,104660.0,104630.0,0.57389532]
[1737322346782,0.408629,104660.0,104630.0,0.40864]
[1737322346979,0.408629,104660.0,104620.0,0.3608]
[1737322346980,0.3608,104640.0,104620.0,0.3608]
[1737322347300,0.3608,104630.0,104610.0,0.047848]
[1737322347500,0.3608,104620.0,104590.0,0.2048]
[1737322347787,0.3608,104610.0,104590.0,0.047858]
[1737322348179,0.3608,104600.0,104570.0,0.0001144]
[1737322348685,0.3608,104600.0,104580.0,0.047862]
[1737322348886,0.047854,104610.0,104580.0,0.3608]
[1737322349079,0.3608,104620.0,104610.0,0.047851]
[1737322349281,0.3608,104640.0,104620.0,0.047846]
[1737322349479,0.047846,104620.0,104590.0,0.21311332]
[1737322349678,0.3608,104640.0,104610.0,0.047851]
[1737322349888,0.3608,104660.0,104650.0,0.047832]
[1737322350189,0.36223482,104690.0,104660.0,0.047828]
[1737322350388,0.3608,104680.0,104650.0,0.21308432]
[1737322350691,0.3608,104680.0,104650.0,0.047829]
[1737322350692,0.3608,104670.0,104650.0,0.047829]
[1737322351084,0.3608,104660.0,104640.0,0.047837]
[1737322351289,0.3608,104650.0,104640.0,0.047837]
[1737322351486,0.408632,104660.0,104630.0,0.3608]
[1737322351687,0.408639,104640.0,104600.0,0.838552]
[1737322351884,0.3608,104650.0,104600.0,0.838552]
[1737322351885,0.408646,104620.0,104600.0,0.047852]
[1737322352194,0.408647,104620.0,104600.0,0.047852]
[1737322352399,0.408647,104620.0,104610.0,0.047851]
[1737322352400,0.3608,104620.0,104610.0,0.047851]
[1737322352583,0.3608,104630.0,104620.0,0.047845]
[1737322352983,0.00143482,104690.0,104630.0,0.047842]
[1737322352984,0.3608,104650.0,104630.0,0.047842]
[1737322353288,0.3608,104670.0,104650.0,0.047833]
[1737322353585,0.04925082,104690.0,104660.0,0.047826]
[1737322353788,0.1,104700.0,104660.0,0.52605532]
[1737322353985,0.508611,104700.0,104660.0,0.52605532]
[1737322354292,0.4608,104700.0,104670.0,0.3608]
[1737322354590,0.3608,104720.0,104710.0,0.047805]
[1737322354789,0.4508,104730.0,104720.0,0.047801]
[1737322355096,0.4508,104730.0,104700.0,0.52605532]
[1737322355097,0.09,104730.0,104700.0,0.52605532]
[1737322355285,0.3608,104740.0,104710.0,0.3608]
[1737322355592,0.3608,104750.0,104740.0,0.047789]
[1737322355788,0.1933582,104760.0,104750.0,0.047787]
[1737322355984,0.5541582,104780.0,104760.0,0.047782]
[1737322356190,0.3608,104770.0,104740.0,0.047789]
[1737322356491,0.09,104760.0,104750.0,0.047787]
[1737322356889,0.09,104760.0,104740.0,0.01219024]
[1737322357198,0.3608,104780.0,104740.0,0.52605532]
[1737322357383,0.3608,104770.0,104740.0,0.16525532]
[1737322357591,0.3608,104750.0,104730.0,0.408592]
[1737322357788,0.3608,104750.0,104740.0,0.047791]
[1737322358083,0.09,104770.0,104740.0,0.16525532]
[1737322358288,0.3608,104760.0,104740.0,0.04779]
[1737322358485,0.3608,104750.0,104700.0,0.3608]
[1737322358687,0.408596,104730.0,104700.0,0.047808]
[1737322358891,0.3608,104720.0,104690.0,0.00143225]
[1737322359097,0.3608,104720.0,104700.0,0.047808]
[1737322359287,0.3608,104720.0,104710.0,0.21306032]
[1737322359601,0.3608,104740.0,104730.0,0.047796]
[1737322359802,0.3608,104760.0,104740.0,0.047791]
[1737322359995,0.3608,104750.0,104710.0,0.52605532]
[1737322360200,0.3608,104740.0,104720.0,0.047799]
[1737322360390,0.3608,104730.0,104720.0,0.047799]
[1737322360596,0.408597,104730.0,104700.0,0.047809]
[1737322360793,0.3608,104710.0,104700.0,0.047809]
[1737322361096,0.3608,104760.0,104710.0,0.16525532]
[1737322361301,0.3608,104770.0,104750.0,0.16525532]
[1737322361492,0.3608,104780.0,104750.0,0.16525532]
[1737322361688,0.3608,104760.0,104740.0,0.047791]
[1737322361893,0.4508,104750.0,104740.0,0.047791]
[1737322362200,0.3608,104780.0,104750.0,0.047787]
[1737322362496,0.09,104770.0,104750.0,0.52605532]
[1737322362699,0.09,104770.0,104760.0,0.047782]
[1737322362903,0.3608,104790.0,104780.0,0.047773]
[1737322363199,0.408569,104790.0,104760.0,0.047781]
[1737322363397,0.3608,104770.0,104760.0,0.047781]
[1737322363596,0.09,104780.0,104760.0,0.408581]
[1737322363899,0.1,104800.0,104790.0,0.047769]
[1737322364302,0.5508,104800.0,104790.0,0.047769]
[1737322364595,0.19,104800.0,104790.0,0.21302432]
[1737322364795,0.1,104800.0,104790.0,0.21302432]
[1737322364995,0.60795291,104820.0,104790.0,0.87382432]
[1737322365199,0.24715291,104820.0,104810.0,0.04776]
[1737322365595,0.65570891,104820.0,104800.0,0.047764]
[1737322365905,0.047771,104790.0,104770.0,0.4448]
[1737322366098,0.408571,104790.0,104760.0,0.40858]
[1737322366294,0.3608,104790.0,104780.0,0.047773]
[1737322366796,0.3608,104790.0,104770.0,0.16525532]
[1737322366797,0.3608,104810.0,104770.0,0.52605532]
[1737322367002,0.3608,104810.0,104790.0,0.16525532]
[1737322367207,0.3608,104820.0,104800.0,0.047764]
[1737322367429,0.3608,104820.0,104810.0,0.04776]
[1737322367706,0.3608,104820.0,104790.0,0.047768]
[1737322367707,0.769356,104820.0,104790.0,0.047768]
[1737322367902,0.3608,104800.0,104780.0,0.66362832]
[1737322368096,0.3608,104810.0,104790.0,0.047768]
[1737322368403,0.3608,104820.0,104810.0,0.04776]
[1737322368606,0.3608,104820.0,104800.0,0.047763]
[1737322368904,0.3608,104810.0,104780.0,0.21302532]
[1737322369197,0.7216,104790.0,104760.0,0.16525532]
[1737322369398,0.3608,104790.0,104770.0,0.047778]
[1737322369599,0.04778,104770.0,104750.0,0.047784]
[1737322369803,0.408585,104760.0,104740.0,0.01271381]
[1737322369999,0.3608,104750.0,104740.0,0.01271381]
[1737322370192,0.408587,104750.0,104740.0,0.0146233]
[1737322370702,0.3608,104770.0,104740.0,0.47987862]
[1737322370897,0.3608,104780.0,104740.0,0.47987862]
[1737322370898,0.3608,104780.0,104760.0,0.21303332]
[1737322371094,0.3608,104770.0,104760.0,0.047778]
[1737322371399,0.3608,104770.0,104740.0,0.0146233]
[1737322371604,0.3608,104750.0,104740.0,0.0146233]
[1737322371801,0.3608,104750.0,104740.0,0.0624143]
[1737322372207,0.4508,104750.0,104740.0,0.0146233]
[1737322372395,0.498587,104750.0,104740.0,0.0146233]
[1737322372595,0.047791,104740.0,104730.0,0.00143176]
[1737322372796,0.3608,104740.0,104700.0,0.26944772]
[1737322372997,0.3608,104710.0,104700.0,0.31725672]
[1737322373209,0.3608,104710.0,104700.0,0.147809]
[1737322373595,0.3608,104730.0,104700.0,0.1]
[1737322373798,0.3608,104750.0,104710.0,0.16525532]
[1737322373997,0.3608,104740.0,104730.0,0.047795]
[1737322374613,0.58907027,104750.0,104740.0,0.047791]
[1737322374799,0.58907027,104750.0,104720.0,0.047797]
[1737322375110,0.3608,104740.0,104730.0,0.047795]
[1737322375703,0.3608,104740.0,104700.0,0.1]
[1737322375897,0.3608,104730.0,104720.0,0.047799]
[1737322376099,0.3608,104730.0,104700.0,0.1]
[1737322376293,0.3608,104730.0,104710.0,0.047805]
[1737322376696,0.3608,104720.0,104710.0,0.047805]
[1737322376900,0.09,104710.0,104700.0,0.1]
[1737322377099,0.4508,104710.0,104700.0,0.14781]
[1737322377305,0.4508,104710.0,104700.0,0.1]
[1737322377306,0.498605,104710.0,104700.0,0.1]
[1737322377499,0.4508,104710.0,104700.0,0.1]
[1737322377814,0.3608,104730.0,104700.0,0.14781]
[1737322378109,0.3608,104740.0,104700.0,0.4608]
[1737322378300,0.3608,104740.0,104710.0,0.047804]
[1737322378504,0.408596,104730.0,104710.0,0.047804]
[1737322378701,0.3608,104720.0,104710.0,0.047804]
[1737322378903,0.3608,104720.0,104700.0,0.1]
[1737322379104,0.3608,104710.0,104700.0,0.14781]
[1737322379307,0.3608,104720.0,104710.0,0.047805]
[1737322379605,0.3608,104730.0,104720.0,0.047801]
[1737322379800,0.3608,104730.0,104700.0,0.1]
[1737322380000,0.3608,104730.0,104720.0,0.047801]
[1737322380400,0.3608,104730.0,104720.0,0.0239207]
[1737322380401,0.408596,104730.0,104720.0,0.0239207]
[1737322380608,0.408596,104730.0,104700.0,0.1]
[1737322380803,0.3608,104720.0,104710.0,0.047805]
[1737322381002,0.3608,104730.0,104710.0,0.07172702]
[1737322381203,0.3608,104730.0,104720.0,0.047801]
[1737322381399,0.54685427,104760.0,104730.0,0.047796]
[1737322381606,0.3608,104750.0,104730.0,0.0717176]
[1737322381811,0.3608,104740.0,104730.0,0.0717176]
[1737322382101,1.04112,104770.0,104730.0,0.89777292]
[1737322382102,0.00064,104770.0,104730.0,0.89777292]
[1737322382298,0.13827027,104780.0,104770.0,0.047778]
[1737322382505,0.49907027,104780.0,104750.0,0.047783]
[1737322382705,0.49907027,104780.0,104760.0,0.047781]
[1737322382913,0.408579,104770.0,104740.0,0.04779]
[1737322383117,0.3608,104750.0,104740.0,0.07170577]
[1737322383308,0.3608,104750.0,104740.0,0.04779]
[1737322383706,0.7216,104750.0,104730.0,0.44317002]
[1737322383913,0.047796,104730.0,104720.0,0.18095988]
[1737322384212,0.09,104720.0,104710.0,0.33782017]
[1737322384419,0.498601,104720.0,104710.0,0.33782017]
[1737322384603,0.047805,104710.0,104700.0,0.1]
[1737322384810,0.047805,104710.0,104690.0,0.84439354]
[1737322384811,0.48254943,104710.0,104690.0,0.84439354]
[1737322385010,0.3608,104710.0,104690.0,0.89220754]
[1737322385212,0.3608,104710.0,104690.0,0.047814]
[1737322385404,0.498604,104720.0,104700.0,0.047809]
[1737322385709,0.498602,104720.0,104700.0,0.047806]
[1737322385910,0.3608,104710.0,104700.0,0.047806]
[1737322386117,0.498602,104720.0,104700.0,0.047806]
[1737322386416,0.3608,104710.0,104700.0,0.047806]
[1737322386616,0.4508,104720.0,104710.0,0.047805]
[1737322386920,0.49907027,104730.0,104720.0,0.047801]
[1737322386921,0.13827027,104730.0,104720.0,0.047801]
[1737322387218,0.49907027,104730.0,104690.0,0.70994943]
[1737322387516,0.3608,104710.0,104690.0,0.2274]
[1737322387709,0.3608,104710.0,104690.0,0.047811]
[1737322387710,0.408607,104710.0,104690.0,0.047811]
[1737322387915,0.3608,104720.0,104680.0,0.48254943]
[1737322388211,0.3608,104720.0,104710.0,0.047805]
[1737322388415,0.3608,104730.0,104720.0,0.047796]
[1737322388615,0.3608,104730.0,104710.0,0.047802]
[1737322388916,0.3608,104720.0,104710.0,0.047802]
[1737322389108,0.3608,104720.0,104670.0,0.3608]
[1737322389314,0.3608,104720.0,104700.0,0.047806]
[1737322389513,0.3608,104720.0,104710.0,0.047805]
[1737322389719,0.3608,104730.0,104720.0,0.047801]
[1737322389929,0.49907027,104740.0,104730.0,0.047796]
[1737322390118,0.13827027,104740.0,104730.0,0.047796]
[1737322390415,0.047796,104730.0,104710.0,0.3608]
[1737322390617,0.3608,104720.0,104700.0,0.047809]
[1737322390918,0.3608,104710.0,104670.0,0.574]
[1737322391111,0.3608,104720.0,104700.0,0.047809]
[1737322391319,0.3608,104710.0,104700.0,0.047806]
[1737322391514,0.4508,104710.0,104670.0,0.574]
[1737322391719,0.4508,104710.0,104680.0,0.047817]
[1737322391720,0.3608,104700.0,104680.0,0.047817]
[1737322392018,0.3608,104700.0,104690.0,0.047814]
[1737322392217,0.3608,104700.0,104660.0,0.047828]
[1737322392424,0.3608,104670.0,104660.0,0.047828]
[1737322392719,0.3608,104690.0,104680.0,0.047817]
[1737322393107,0.3608,104700.0,104680.0,0.047817]
[1737322393312,0.09,104690.0,104680.0,0.047817]
[1737322393511,0.4508,104690.0,104660.0,0.259224]
[1737322393828,0.3608,104670.0,104660.0,0.047824]
[1737322394028,0.408621,104680.0,104660.0,0.047824]
[1737322394216,0.3608,104680.0,104650.0,9.905e-05]
[1737322394517,0.3608,104670.0,104650.0,9.905e-05]
[1737322394719,0.408628,104660.0,104650.0,9.905e-05]
[1737322394924,0.047839,104640.0,104610.0,0.047847]
[1737322395225,0.047839,104640.0,104620.0,0.047846]
[1737322395420,0.3608,104650.0,104630.0,0.04784]
[1737322395608,0.4508,104640.0,104630.0,0.04784]
[1737322395812,0.3608,104660.0,104620.0,0.3608]
[1737322396013,0.3608,104660.0,104650.0,0.047833]
[1737322396215,0.40863,104660.0,104630.0,0.047839]
[1737322396423,0.3608,104640.0,104630.0,0.047839]
[1737322396609,0.09,104650.0,104640.0,0.047837]
[1737322396814,0.3608,104660.0,104650.0,0.047833]
[1737322397324,0.3608,104670.0,104630.0,0.75523342]
[1737322397624,0.3608,104670.0,104650.0,0.047829]
[1737322397815,0.3608,104660.0,104650.0,0.047829]
[1737322398115,0.40863,104660.0,104640.0,0.047835]
[1737322398315,0.40863,104660.0,104650.0,0.047833]
[1737322398515,0.40863,104660.0,104640.0,0.047837]
[1737322398717,0.3608,104650.0,104620.0,0.047845]
[1737322398931,0.3608,104630.0,104600.0,0.5758]
[1737322399220,0.3608,104620.0,104610.0,0.04785]
[1737322399525,0.3608,104630.0,104620.0,0.047845]
[1737322399829,0.3608,104630.0,104610.0,0.02394031]
[1737322399830,0.047846,104620.0,104610.0,0.047851]
[1737322400125,0.408637,104640.0,104610.0,0.02394048]
[1737322400325,0.408643,104630.0,104610.0,0.02394048]
[1737322400630,0.047858,104600.0,104580.0,0.04795318]
[1737322400826,0.40866,104590.0,104580.0,0.02403288]
[1737322401121,0.3608,104590.0,104580.0,0.07189688]
[1737322401315,0.40866,104590.0,104580.0,0.02403288]
[1737322401521,0.3608,104590.0,104570.0,0.047869]
[1737322401721,0.3608,104590.0,104570.0,0.07181589]
[1737322401722,0.4508,104580.0,104570.0,0.07181589]
[1737322402322,0.408661,104590.0,104570.0,0.07181589]
[1737322402920,0.408655,104600.0,104580.0,0.047865]
[1737322403127,0.3608,104590.0,104580.0,0.07181189]
[1737322403627,0.40866,104590.0,104580.0,0.02394979]
[1737322403821,0.40866,104590.0,104570.0,0.047868]
[1737322404017,0.40866,104590.0,104570.0,0.07181714]
[1737322404216,0.3608,104580.0,104570.0,0.07181714]
[1737322404421,0.3608,104580.0,104570.0,0.047868]
[1737322404817,0.3608,104580.0,104560.0,0.259971]
[1737322405131,0.3608,104580.0,104560.0,0.23605134]
[1737322405330,0.3608,104580.0,104560.0,0.259972]
[1737322405625,0.3608,104580.0,104560.0,0.28392421]
[1737322405832,0.3608,104570.0,104560.0,0.047872]
[1737322406212,0.408665,104580.0,104560.0,0.047872]
[1737322406422,0.40867,104570.0,104550.0,0.047877]
[1737322406618,0.40867,104570.0,104550.0,0.07183057]
[1737322406914,0.04788,104550.0,104530.0,0.2168]
[1737322407119,0.40868,104550.0,104530.0,0.24075584]
[1737322407323,0.3608,104540.0,104530.0,0.02395584]
[1737322407525,0.3608,104540.0,104520.0,0.047889]
[1737322407829,0.3608,104530.0,104520.0,0.0718478]
[1737322408130,0.3608,104530.0,104510.0,0.0479955]
[1737322408320,0.3608,104520.0,104510.0,0.07195589]
[1737322408520,0.3608,104520.0,104510.0,0.10190834]
[1737322409028,0.3608,104520.0,104510.0,0.10190962]
[1737322409230,0.3608,104550.0,104530.0,0.047887]